fUSD/lending_fUSD_20251112
["ID","MTS","AMOUNT","RATE_DAILY","PERIOD"]
[393700447,1762930322059,-500.0,0.00039198,20]
[393700448,1762930322069,-500.0,0.00039198,20]
[393700449,1762930322079,-500.0,0.00039198,20]
[393700450,1762930322088,-1049.74,0.00039198,20]
[393700451,1762930322098,-743.42,0.00039198,20]
[393700452,1762930322108,-666.69,0.00039198,20]
[393700453,1762930322117,-630.64,0.00039198,20]
[393700454,1762930322127,-1098.05342992,0.00039199,30]
[393700455,1762930322136,-500.0,0.00039199,20]
[393700456,1762930322146,-1065.11,0.00039199,20]
[393700457,1762930322155,-688.04,0.00039199,20]
[393700458,1762930322165,-812.44,0.00039199,20]
[393700459,1762930322174,-686.2,0.00039199,20]
[393700460,1762930322185,-500.0,0.00039199,20]
[393700461,1762930322195,-510.29,0.00039199,20]
[393700462,1762930322205,-1000.05,0.00039199,20]
[393700463,1762930322214,-500.0,0.00039199,20]
[393700464,1762930322223,-500.0,0.00039199,20]
[393700465,1762930322232,-500.0,0.00039199,20]
[393700466,1762930322242,-516.91,0.00039199,20]
[393700467,1762930322252,-1087.01,0.00039199,20]
[393700468,1762930322261,-816.71,0.00039199,20]
[393700469,1762930322276,-500.0,0.00039199,20]
[393700470,1762930322286,-902.62,0.00039199,20]
[393700471,1762930322295,-1493.93,0.00039199,20]
[393700472,1762930322306,-500.0,0.00039199,20]
[393700473,1762930322318,-509.94,0.00039199,20]
[393700474,1762930322328,-1097.77,0.00039199,20]
[393700475,1762930322337,-705.54,0.00039199,20]
[393700476,1762930322347,-768.67,0.00039199,20]
[393700477,1762930322356,-830.95,0.00039199,20]
[393700478,1762930322366,-696.05,0.00039199,20]
[393700479,1762930322376,-820.52,0.00039199,20]
[393700480,1762930322385,-1144.3,0.00039199,20]
[393700481,1762930322395,-529.28,0.00039199,20]
[393700482,1762930322404,-500.0,0.00039199,20]
[393700483,1762930322413,-583.49,0.00039199,20]
[393700484,1762930322425,-500.0,0.00039199,20]
[393700485,1762930322434,-1439.59,0.00039199,20]
[393700486,1762930322444,-500.0,0.00039199,20]
[393700487,1762930322453,-500.0,0.00039199,20]
[393700488,1762930322463,-1613.0,0.000392,120]
[393700489,1762930322473,-1051.61,0.000392,20]
[393700490,1762930322483,-1051.61,0.000392,20]
[393700491,1762930322492,-507.42,0.000392,20]
[393700492,1762930322501,-507.42,0.000392,20]
[393700493,1762930322511,-500.0,0.000392,20]
[393700494,1762930322520,-500.0,0.000392,20]
[393700495,1762930322530,-253.96407365,0.000392,20]
[393700496,1762930322539,-574.73,0.000392,20]
[393700497,1762930322548,-574.73,0.000392,20]
[393700498,1762930322558,-517.41,0.000392,20]
[393700499,1762930322568,-517.41,0.000392,20]
[393700500,1762930322577,-154.40680332,0.000392,20]
[393700501,1762930322587,-509.06,0.000392,20]
[393700502,1762930322597,-509.06,0.000392,20]
[393700503,1762930322606,-642.46,0.000392,20]
[393700504,1762930322615,-642.46,0.000392,20]
[393700505,1762930322624,-500.0,0.000392,20]
[393700506,1762930322634,-500.0,0.000392,20]
[393700507,1762930322644,-505.73768078,0.000392,20]
[393700508,1762930322654,-500.0,0.000392,20]
[393700509,1762930322663,-500.0,0.000392,20]
[393700510,1762930322675,-1065.11,0.000392,20]
[393700511,1762930322684,-519.34,0.000392,20]
[393700512,1762930322694,-519.34,0.000392,20]
[393700513,1762930322704,-688.04,0.000392,20]
[393700514,1762930322713,-812.44,0.000392,20]
[393700515,1762930322723,-686.2,0.000392,20]
[393700516,1762930322732,-500.0,0.000392,20]
[393700517,1762930322742,-1987.1,0.000392,20]
[393700518,1762930322753,-1987.1,0.000392,20]
[393700519,1762930322765,-510.29,0.000392,20]
[393700520,1762930322777,-1000.05,0.000392,20]
[393700521,1762930322789,-883.05,0.000392,20]
[393700522,1762930322801,-883.05,0.000392,20]
[393700523,1762930322812,-562.96,0.000392,20]
[393700524,1762930322824,-500.0,0.000392,20]
[393700525,1762930322835,-562.96,0.000392,20]
[393700526,1762930322845,-500.0,0.000392,20]
[393700527,1762930322856,-500.0,0.000392,20]
[393700528,1762930322867,-500.0,0.000392,20]
[393700529,1762930322878,-757.86,0.000392,20]
[393700530,1762930322889,-757.86,0.000392,20]
[393700531,1762930322900,-2119.42,0.000392,2]
[393700532,1762930322911,-2119.42,0.000392,2]
[393700533,1762930322926,-500.0,0.000392,20]
[393700534,1762930322937,-883.7,0.000392,20]
[393700535,1762930322948,-883.7,0.000392,20]
[393700536,1762930322960,-516.91,0.000392,20]
[393700537,1762930322972,-1087.01,0.000392,20]
[393700538,1762930322983,-500.0,0.000392,20]
[393700539,1762930322994,-500.0,0.000392,20]
[393700540,1762930323005,-960.02,0.000392,20]
[393700541,1762930323027,-960.02,0.000392,20]
[393700542,1762930323038,-816.71,0.000392,20]
[393700543,1762930323049,-500.0,0.000392,20]
[393700544,1762930323060,-369.18197818,0.000392,20]
[393700545,1762930323071,-747.92,0.000392,20]
[393700546,1762930323083,-747.92,0.000392,20]
[393700547,1762930323093,-500.0,0.000392,20]
[393700548,1762930323103,-902.62,0.000392,20]
[393700549,1762930323113,-550.51,0.000392,20]
[393700550,1762930323125,-550.51,0.000392,20]
[393700551,1762930323136,-500.0,0.000392,20]
[393700552,1762930323148,-500.0,0.000392,20]
[393700553,1762930323159,-1493.93,0.000392,20]
[393700554,1762930323172,-572.01,0.000392,20]
[393700555,1762930323183,-572.01,0.000392,20]
[393700556,1762930323195,-763.79,0.000392,20]
[393700557,1762930323206,-763.79,0.000392,20]
[393700558,1762930323218,-500.0,0.000392,20]
[393700559,1762930323229,-276.08743676,0.000392,20]
[393700560,1762930323241,-732.14,0.000392,20]
[393700561,1762930323252,-732.14,0.000392,20]
[393700562,1762930323263,-500.0,0.000392,20]
[393700563,1762930323277,-500.0,0.000392,20]
[393700564,1762930323289,-1200.01,0.000392,20]
[393700565,1762930323300,-500.0,0.000392,20]
[393700566,1762930323312,-1200.01,0.000392,20]
[393700567,1762930323323,-667.99,0.000392,20]
[393700568,1762930323334,-667.99,0.000392,20]
[393700569,1762930323348,-724.6,0.000392,20]
[393700570,1762930323359,-724.6,0.000392,20]
[393700571,1762930323369,-1697.1,0.000392,20]
[393700572,1762930323380,-1697.1,0.000392,20]
[393700573,1762930323391,-509.94,0.000392,20]
[393700574,1762930323402,-500.0,0.000392,20]
[393700575,1762930323412,-500.0,0.000392,20]
[393700576,1762930323425,-518.5,0.000392,20]
[393700577,1762930323435,-518.5,0.000392,20]
[393700578,1762930323446,-1097.77,0.000392,20]
[393700579,1762930323456,-500.0,0.000392,20]
[393700580,1762930323466,-1171.64,0.000392,20]
[393700581,1762930323476,-500.0,0.000392,20]
[393700582,1762930323487,-1171.64,0.000392,20]
[393700583,1762930323497,-705.54,0.000392,20]
[393700584,1762930323509,-547.75,0.000392,20]
[393700585,1762930323521,-547.75,0.000392,20]
[393700586,1762930323531,-725.31,0.000392,20]
[393700587,1762930323542,-725.31,0.000392,20]
[393700588,1762930323553,-1486.89,0.000392,20]
[393700589,1762930323563,-1486.89,0.000392,20]
[393700590,1762930323574,-768.67,0.000392,20]
[393700591,1762930323585,-991.84,0.000392,20]
[393700592,1762930323596,-991.84,0.000392,20]
[393700593,1762930323612,-830.95,0.000392,20]
[393700594,1762930323622,-678.36,0.000392,20]
[393700595,1762930323632,-678.36,0.000392,20]
[393700596,1762930323642,-1330.19,0.000392,20]
[393700597,1762930323652,-1330.19,0.000392,20]
[393700598,1762930323663,-500.0,0.000392,20]
[393700599,1762930323674,-500.0,0.000392,20]
[393700600,1762930323685,-711.07,0.000392,20]
[393700601,1762930323697,-711.07,0.000392,20]
[393700602,1762930323709,-696.05,0.000392,20]
[393700603,1762930323720,-1065.8,0.000392,20]
[393700604,1762930323730,-1065.8,0.000392,20]
[393700605,1762930323740,-800.76,0.000392,20]
[393700606,1762930323750,-800.76,0.000392,20]
[393700607,1762930323760,-820.52,0.000392,20]
[393700608,1762930323770,-590.33,0.000392,20]
[393700609,1762930323780,-590.33,0.000392,20]
[393700610,1762930323790,-1144.3,0.000392,20]
[393700611,1762930323801,-491.61819021,0.000392,20]
[393700612,1762930323811,-529.28,0.000392,20]
[393700613,1762930323822,-1016.04,0.000392,20]
[393700614,1762930323832,-1016.04,0.000392,20]
[393700615,1762930323844,-616.05,0.000392,20]
[393700616,1762930323855,-616.05,0.000392,20]
[393700617,1762930323866,-500.0,0.000392,20]
[393700618,1762930323875,-1443.08,0.000392,20]
[393700619,1762930323885,-1443.08,0.000392,20]
[393700620,1762930323896,-1867.44,0.000392,20]
[393700621,1762930323905,-1867.44,0.000392,20]
[393700622,1762930323915,-605.45710218,0.000392,20]
[393700623,1762930323927,-605.59,0.000392,20]
[393700624,1762930323938,-605.59,0.000392,20]
[393700625,1762930323948,-583.49,0.000392,20]
[393700626,1762930323958,-500.0,0.000392,20]
[393700627,1762930323969,-500.0,0.000392,20]
[393700628,1762930323979,-500.0,0.000392,20]
[393700629,1762930323989,-500.0,0.000392,20]
[393700630,1762930323999,-538.87269214,0.000392,20]
[393700631,1762930324009,-1439.59,0.000392,20]
[393700632,1762930324019,-388.9251543,0.000392,20]
[393700633,1762930324030,-561.01,0.000392,20]
[393700634,1762930324039,-561.01,0.000392,20]
[393700635,1762930324050,-500.0,0.000392,20]
[393700636,1762930324060,-500.0,0.000392,20]
[393700637,1762930324070,-830.98,0.000392,20]
[393700638,1762930324081,-830.98,0.000392,20]
[393700639,1762930324091,-500.0,0.000392,20]
[393700640,1762930324101,-500.0,0.000392,20]
[393700641,1762930324111,-500.0,0.00039201,20]
[393700642,1762930324121,-500.0,0.00039201,20]
[393700643,1762930324131,-500.0,0.00039201,20]
[393700644,1762930324141,-500.0,0.00039201,20]
[393700645,1762930324151,-500.0,0.00039201,20]
[393700646,1762930324161,-2604.31,0.00039201,20]
[393700647,1762930324173,-2604.31,0.00039201,20]
[393700648,1762930324183,-2604.31,0.00039201,20]
[393700649,1762930324194,-2604.31,0.00039201,20]
[393700650,1762930324205,-500.0,0.00039201,20]
[393700651,1762930324215,-511.08645152,0.00039201,20]
[393700652,1762930324226,-500.0,0.00039201,20]
[393700653,1762930324236,-500.0,0.00039201,20]
[393700654,1762930324247,-500.0,0.00039201,20]
[393700655,1762930324257,-500.0,0.00039201,20]
[393700656,1762930324269,-500.0,0.00039201,20]
[393700657,1762930324283,-500.0,0.00039201,20]
[393700658,1762930324293,-586.15,0.00039201,20]
[393700659,1762930324303,-586.15,0.00039201,20]
[393700660,1762930324315,-586.15,0.00039201,20]
[393700661,1762930324325,-500.0,0.00039201,20]
[393700662,1762930324335,-246.37340218,0.00039201,20]
[393700663,1762930324346,-500.0,0.00039201,20]
[393700664,1762930324356,-500.0,0.00039201,20]
[393700665,1762930324366,-500.0,0.00039201,20]
[393700666,1762930324376,-500.0,0.00039201,20]
[393700667,1762930324386,-500.0,0.00039201,20]
[393700668,1762930324396,-500.0,0.00039201,20]
[393700669,1762930324406,-500.0,0.00039201,20]
[393700670,1762930324416,-500.0,0.00039201,20]
[393700671,1762930324428,-500.0,0.00039201,20]
[393700672,1762930324438,-637.18,0.00039201,20]
[393700673,1762930324448,-637.18,0.00039201,20]
[393700674,1762930324458,-637.18,0.00039201,20]
[393700675,1762930324468,-633.23392953,0.00039201,20]
[393700676,1762930324479,-500.0,0.00039201,20]
[393700677,1762930324489,-500.0,0.00039201,20]
[393700678,1762930324499,-500.0,0.00039201,20]
[393700679,1762930324509,-408.61620418,0.00039201,20]
[393700680,1762930324519,-1290.86,0.00039201,2]
[393700681,1762930324529,-1290.86,0.00039201,2]
[393700682,1762930324539,-1290.86,0.00039201,2]
[393700683,1762930324549,-235.41173256,0.00039201,20]
[393700684,1762930324559,-500.0,0.00039201,20]
[393700685,1762930324569,-530.69640812,0.00039201,20]
[393700686,1762930324579,-519.53,0.00039201,20]
[393700687,1762930324589,-519.53,0.00039201,20]
[393700688,1762930324599,-519.53,0.00039201,20]
[393700689,1762930324609,-500.0,0.00039201,20]
[393700690,1762930324621,-500.0,0.00039201,20]
[393700691,1762930324633,-500.0,0.00039201,20]
[393700692,1762930324645,-266.8815647,0.00039201,20]
[393700693,1762930324655,-344.20886334,0.00039201,20]
[393700694,1762930324665,-535.82,0.00039201,20]
[393700695,1762930324676,-535.82,0.00039201,20]
[393700696,1762930324686,-535.82,0.00039201,20]
[393700697,1762930324696,-500.0,0.00039201,20]
[393700698,1762930324706,-500.0,0.00039201,20]
[393700699,1762930324716,-500.0,0.00039201,20]
[393700700,1762930324726,-1051.61,0.00039201,20]
[393700701,1762930324736,-1051.61,0.00039201,20]
[393700702,1762930324746,-1051.61,0.00039201,20]
[393700703,1762930324757,-1051.61,0.00039201,20]
[393700704,1762930324767,-1051.82368097,0.00039201,20]
[393700705,1762930324777,-507.42,0.00039201,20]
[393700706,1762930324787,-507.42,0.00039201,20]
[393700707,1762930324798,-507.42,0.00039201,20]
[393700708,1762930324808,-507.42,0.00039201,20]
[393700709,1762930324817,-507.61572125,0.00039201,20]
[393700710,1762930324827,-500.0,0.00039201,20]
[393700711,1762930324836,-523.96,0.00039201,20]
[393700712,1762930324847,-263.18853468,0.00039201,20]
[393700713,1762930324857,-523.96,0.00039201,20]
[393700714,1762930324867,-500.0,0.00039201,20]
[393700715,1762930324876,-523.96,0.00039201,20]
[393700716,1762930324886,-500.0,0.00039201,20]
[393700717,1762930324896,-500.0,0.00039201,20]
[393700718,1762930324906,-523.83,0.00039201,20]
[393700719,1762930324916,-523.83,0.00039201,20]
[393700720,1762930324927,-523.83,0.00039201,20]
[393700721,1762930324937,-500.0,0.00039201,20]
[393700722,1762930324947,-500.0,0.00039201,20]
[393700723,1762930324958,-500.0,0.00039201,20]
[393700724,1762930324967,-841.89,0.00039201,20]
[393700725,1762930324977,-841.89,0.00039201,20]
[393700726,1762930324987,-841.89,0.00039201,20]
[393700727,1762930324997,-694.72,0.00039201,20]
[393700728,1762930325008,-428.55799759,0.00039201,20]
[393700729,1762930325018,-694.72,0.00039201,20]
[393700730,1762930325028,-694.72,0.00039201,20]
[393700731,1762930325039,-500.0,0.00039201,20]
[393700732,1762930325049,-500.0,0.00039201,20]
[393700733,1762930325059,-500.0,0.00039201,20]
[393700734,1762930325069,-300.0,0.00039201,20]
[393700735,1762930325079,-300.0,0.00039201,20]
[393700736,1762930325089,-300.0,0.00039201,20]
[393700737,1762930325099,-500.0,0.00039201,20]
[393700738,1762930325109,-500.0,0.00039201,20]
[393700739,1762930325119,-500.0,0.00039201,20]
[393700740,1762930325128,-574.73,0.00039201,20]
[393700741,1762930325138,-574.73,0.00039201,20]
[393700742,1762930325149,-574.73,0.00039201,20]
[393700743,1762930325159,-574.73,0.00039201,20]
[393700744,1762930325169,-574.8202616,0.00039201,20]
[393700745,1762930325179,-1025.02,0.00039201,120]
[393700746,1762930325189,-1025.02,0.00039201,120]
[393700747,1762930325199,-1025.02,0.00039201,120]
[393700748,1762930325210,-500.0,0.00039201,20]
[393700749,1762930325220,-468.409301,0.00039201,20]
[393700750,1762930325230,-500.0,0.00039201,20]
[393700751,1762930325240,-500.0,0.00039201,20]
[393700752,1762930325250,-500.0,0.00039201,20]
[393700753,1762930325261,-500.0,0.00039201,20]
[393700754,1762930325272,-500.0,0.00039201,20]
[393700755,1762930325286,-500.0,0.00039201,20]
[393700756,1762930325296,-500.0,0.00039201,20]
[393700757,1762930325306,-500.0,0.00039201,20]
[393700758,1762930325318,-155.79793545,0.00039201,20]
[393700759,1762930325328,-500.0,0.00039201,20]
[393700760,1762930325337,-498.63490076,0.00039201,20]
[393700761,1762930325349,-535.32,0.00039201,20]
[393700762,1762930325359,-535.32,0.00039201,20]
[393700763,1762930325369,-535.32,0.00039201,20]
[393700764,1762930325379,-517.41,0.00039201,20]
[393700765,1762930325389,-517.41,0.00039201,20]
[393700766,1762930325399,-517.41,0.00039201,20]
[393700767,1762930325408,-517.41,0.00039201,20]
[393700768,1762930325418,-517.41,0.00039201,20]
[393700769,1762930325429,-500.0,0.00039201,20]
[393700770,1762930325439,-500.0,0.00039201,20]
[393700771,1762930325449,-500.0,0.00039201,20]
[393700772,1762930325459,-551.44,0.00039201,20]
[393700773,1762930325469,-551.44,0.00039201,20]
[393700774,1762930325479,-551.44,0.00039201,20]
[393700775,1762930325488,-509.06,0.00039201,20]
[393700776,1762930325498,-509.06,0.00039201,20]
[393700777,1762930325509,-509.06,0.00039201,20]
[393700778,1762930325518,-509.06,0.00039201,20]
[393700779,1762930325529,-509.17640824,0.00039201,20]
[393700780,1762930325538,-500.0,0.00039201,20]
[393700781,1762930325548,-328.11697659,0.00039201,20]
[393700782,1762930325559,-500.0,0.00039201,20]
[393700783,1762930325569,-500.0,0.00039201,20]
[393700784,1762930325579,-500.0,0.00039201,20]
[393700785,1762930325588,-500.0,0.00039201,20]
[393700786,1762930325598,-500.0,0.00039201,20]
[393700787,1762930325608,-500.0,0.00039201,20]
[393700788,1762930325617,-739.71,0.00039201,20]
[393700789,1762930325627,-739.71,0.00039201,20]
[393700790,1762930325637,-739.71,0.00039201,20]
[393700791,1762930325647,-500.0,0.00039201,20]
[393700792,1762930325657,-500.0,0.00039201,20]
[393700793,1762930325667,-500.0,0.00039201,20]
[393700794,1762930325677,-642.46,0.00039201,20]
[393700795,1762930325686,-642.46,0.00039201,20]
[393700796,1762930325696,-642.46,0.00039201,20]
[393700797,1762930325706,-642.46,0.00039201,20]
[393700798,1762930325716,-642.53841782,0.00039201,20]
[393700799,1762930325726,-500.0,0.00039201,20]
[393700800,1762930325736,-500.0,0.00039201,20]
[393700801,1762930325747,-500.0,0.00039201,20]
[393700802,1762930325757,-500.0,0.00039201,20]
[393700803,1762930325767,-500.0,0.00039201,20]
[393700804,1762930325777,-533.16683999,0.00039201,20]
[393700805,1762930325788,-500.0,0.00039201,20]
[393700806,1762930325798,-603.11006416,0.00039201,20]
[393700807,1762930325809,-500.0,0.00039201,20]
[393700808,1762930325818,-500.0,0.00039201,20]
[393700809,1762930325828,-500.0,0.00039201,20]
[393700810,1762930325839,-579.99,0.00039201,20]
[393700811,1762930325849,-579.99,0.00039201,20]
[393700812,1762930325860,-579.99,0.00039201,20]
[393700813,1762930325871,-500.0,0.00039201,20]
[393700814,1762930325881,-500.0,0.00039201,20]
[393700815,1762930325892,-500.0,0.00039201,20]
[393700816,1762930325902,-500.0,0.00039201,20]
[393700817,1762930325912,-500.0,0.00039201,20]
[393700818,1762930326180,-500.0,0.00039201,20]
[393700819,1762930326242,-500.0,0.00039201,20]
[393700820,1762930326254,-500.0,0.00039201,20]
[393700821,1762930326263,-500.0,0.00039201,20]
[393700822,1762930326278,-500.0,0.00039201,20]
[393700823,1762930326288,-500.0,0.00039201,20]
[393700824,1762930326297,-275.89147715,0.00039201,20]
[393700825,1762930326307,-1065.11,0.00039201,20]
[393700826,1762930326318,-514.13,0.00039201,20]
[393700827,1762930326328,-1065.11,0.00039201,20]
[393700828,1762930326337,-514.13,0.00039201,20]
[393700829,1762930326350,-1065.11,0.00039201,20]
[393700830,1762930326359,-514.13,0.00039201,20]
[393700831,1762930326369,-1065.11,0.00039201,20]
[393700832,1762930326378,-1065.32057167,0.00039201,20]
[393700833,1762930326387,-519.34,0.00039201,20]
[393700834,1762930326397,-519.34,0.00039201,20]
[393700835,1762930326406,-519.34,0.00039201,20]
[393700836,1762930326415,-519.34,0.00039201,20]
[393700837,1762930326426,-519.55607467,0.00039201,20]
[393700838,1762930326436,-688.04,0.00039201,20]
[393700839,1762930326446,-688.04,0.00039201,20]
[393700840,1762930326455,-688.04,0.00039201,20]
[393700841,1762930326465,-688.04,0.00039201,20]
[393700842,1762930326474,-688.17205125,0.00039201,20]
[393700843,1762930326484,-812.44,0.00039201,20]
[393700844,1762930326494,-812.44,0.00039201,20]
[393700845,1762930326503,-812.44,0.00039201,20]
[393700846,1762930326513,-812.44,0.00039201,20]
[393700847,1762930326522,-812.49385065,0.00039201,20]
[393700848,1762930326531,-686.2,0.00039201,20]
[393700849,1762930326540,-686.2,0.00039201,20]
[393700850,1762930326550,-686.2,0.00039201,20]
[393700851,1762930326559,-686.2,0.00039201,20]
[393700852,1762930326569,-686.26170752,0.00039201,20]
[393700853,1762930326578,-548.49,0.00039201,20]
[393700854,1762930326588,-548.49,0.00039201,20]
[393700855,1762930326598,-548.49,0.00039201,20]
[393700856,1762930326608,-548.49,0.00039201,20]
[393700857,1762930326617,-500.0,0.00039201,20]
[393700858,1762930326626,-500.0,0.00039201,20]
[393700859,1762930326635,-500.0,0.00039201,20]
[393700860,1762930326644,-535.70464655,0.00039201,20]
[393700861,1762930326654,-1987.1,0.00039201,20]
[393700862,1762930326663,-1987.1,0.00039201,20]
[393700863,1762930326673,-1987.1,0.00039201,20]
[393700864,1762930326682,-1987.1,0.00039201,20]
[393700865,1762930326692,-1987.11641784,0.00039201,20]
[393700866,1762930326701,-709.53,0.00039201,20]
[393700867,1762930326711,-709.53,0.00039201,20]
[393700868,1762930326720,-709.53,0.00039201,20]
[393700869,1762930326730,-709.53,0.00039201,20]
[393700870,1762930326739,-510.29,0.00039201,20]
[393700871,1762930326748,-510.29,0.00039201,20]
[393700872,1762930326758,-510.29,0.00039201,20]
[393700873,1762930326767,-510.29,0.00039201,20]
[393700874,1762930326776,-510.29809777,0.00039201,20]
[393700875,1762930326786,-1000.05,0.00039201,20]
[393700876,1762930326796,-1000.05,0.00039201,20]
[393700877,1762930326806,-1000.05,0.00039201,20]
[393700878,1762930326815,-1000.05,0.00039201,20]
[393700879,1762930326825,-883.05,0.00039201,20]
[393700880,1762930326834,-1000.1844199,0.00039201,20]
[393700881,1762930326843,-883.05,0.00039201,20]
[393700882,1762930326853,-883.05,0.00039201,20]
[393700883,1762930326863,-883.05,0.00039201,20]
[393700884,1762930326872,-883.05738023,0.00039201,20]
[393700885,1762930326882,-1297.32,0.00039201,20]
[393700886,1762930326891,-1297.32,0.00039201,20]
[393700887,1762930326901,-1297.32,0.00039201,20]
[393700888,1762930326910,-1297.32,0.00039201,20]
[393700889,1762930326920,-500.0,0.00039201,20]
[393700890,1762930326930,-500.0,0.00039201,20]
[393700891,1762930326939,-562.96,0.00039201,20]
[393700892,1762930326948,-615.83488875,0.00039201,20]
[393700893,1762930326959,-562.96,0.00039201,20]
[393700894,1762930326968,-500.0,0.00039201,20]
[393700895,1762930326977,-372.26449042,0.00039201,20]
[393700896,1762930326987,-562.96,0.00039201,20]
[393700897,1762930326997,-562.96,0.00039201,20]
[393700898,1762930327006,-563.04,0.00039201,20]
[393700899,1762930327015,-500.0,0.00039201,20]
[393700900,1762930327025,-500.0,0.00039201,20]
[393700901,1762930327034,-757.86,0.00039201,20]
[393700902,1762930327043,-340.43528713,0.00039201,20]
[393700903,1762930327053,-757.86,0.00039201,20]
[393700904,1762930327062,-757.86,0.00039201,20]
[393700905,1762930327073,-757.86,0.00039201,20]
[393700906,1762930327083,-757.89698274,0.00039201,20]
[393700907,1762930327093,-2119.42,0.00039201,2]
[393700908,1762930327102,-2119.42,0.00039201,2]
[393700909,1762930327111,-2119.42,0.00039201,2]
[393700910,1762930327121,-531.94,0.00039201,20]
[393700911,1762930327131,-2119.42,0.00039201,2]
[393700912,1762930327140,-531.94,0.00039201,20]
[393700913,1762930327149,-2119.47310975,0.00039201,2]
[393700914,1762930327158,-531.94,0.00039201,20]
[393700915,1762930327167,-531.94,0.00039201,20]
[393700916,1762930327178,-500.0,0.00039201,20]
[393700917,1762930327187,-500.0,0.00039201,20]
[393700918,1762930327198,-500.0,0.00039201,20]
[393700919,1762930327207,-627.98318453,0.00039201,20]
[393700920,1762930327217,-1059.47,0.00039201,20]
[393700921,1762930327226,-1059.47,0.00039201,20]
[393700922,1762930327236,-1059.47,0.00039201,20]
[393700923,1762930327246,-1059.47,0.00039201,20]
[393700924,1762930327256,-883.7,0.00039201,20]
[393700925,1762930327266,-883.7,0.00039201,20]
[393700926,1762930327280,-883.7,0.00039201,20]
[393700927,1762930327290,-883.7,0.00039201,20]
[393700928,1762930327299,-883.81945501,0.00039201,20]
[393700929,1762930327309,-516.91,0.00039201,20]
[393700930,1762930327319,-516.91,0.00039201,20]
[393700931,1762930327329,-516.91,0.00039201,20]
[393700932,1762930327339,-516.91,0.00039201,20]
[393700933,1762930327349,-517.03344818,0.00039201,20]
[393700934,1762930327358,-738.49,0.00039201,20]
[393700935,1762930327367,-738.49,0.00039201,20]
[393700936,1762930327376,-738.49,0.00039201,20]
[393700937,1762930327385,-738.49,0.00039201,20]
[393700938,1762930327395,-1087.01,0.00039201,20]
[393700939,1762930327404,-1087.01,0.00039201,20]
[393700940,1762930327415,-1087.01,0.00039201,20]
[393700941,1762930327426,-1087.01,0.00039201,20]
[393700942,1762930327436,-1087.08802286,0.00039201,20]
[393700943,1762930327445,-500.0,0.00039201,20]
[393700944,1762930327455,-233.33022379,0.00039201,20]
[393700945,1762930327464,-960.02,0.00039201,20]
[393700946,1762930327474,-960.02,0.00039201,20]